[Event "Live Chess"]
[Site "Chess.com"]
[Date "2023.05.21"]
[Round "-"]
[White "JoeRoot66"]
[Black "WilliamofOrange16th"]
[Result "0-1"]
[WhiteElo "1920"]
[BlackElo "1828"]
[TimeControl "300"]
[EndTime "0:31:03 PDT"]
[Termination "WilliamofOrange16th won by checkmate"]

1. e4 {[%clk 0:04:59]} 1... d6 {[%clk 0:04:59]} 2. Nf3 {[%clk 0:04:57.4]} 2...
Nf6 {[%clk 0:04:57.5]} 3. Bd3 {[%clk 0:04:57.2]} 3... e5 {[%clk 0:04:56.3]} 4.
c3 {[%clk 0:04:56.7]} 4... Be7 {[%clk 0:04:55.3]} 5. Bc2 {[%clk 0:04:56.3]} 5...
c5 {[%clk 0:04:54.7]} 6. d4 {[%clk 0:04:55.5]} 6... cxd4 {[%clk 0:04:53.5]} 7.
cxd4 {[%clk 0:04:55.4]} 7... Nbd7 {[%clk 0:04:49.4]} 8. O-O {[%clk 0:04:54.4]}
8... O-O {[%clk 0:04:48.2]} 9. Nc3 {[%clk 0:04:53.6]} 9... b6 {[%clk 0:04:46.6]}
10. Qe2 {[%clk 0:04:51.2]} 10... Bb7 {[%clk 0:04:45.8]} 11. dxe5 {[%clk
0:04:50.6]} 11... dxe5 {[%clk 0:04:44.4]} 12. Bg5 {[%clk 0:04:46.5]} 12... a5
{[%clk 0:04:39.4]} 13. Rad1 {[%clk 0:04:45.3]} 13... Ba6 {[%clk 0:04:36.5]} 14.
Bd3 {[%clk 0:04:42.5]} 14... Bxd3 {[%clk 0:04:35.7]} 15. Rxd3 {[%clk 0:04:41.1]}
15... Qc7 {[%clk 0:04:34.7]} 16. Rfd1 {[%clk 0:04:35.5]} 16... Nc5 {[%clk
0:04:31.4]} 17. Bxf6 {[%clk 0:04:31.5]} 17... Bxf6 {[%clk 0:04:24.7]} 18. Nd5
{[%clk 0:04:30.7]} 18... Qd8 {[%clk 0:04:17.3]} 19. Nxf6+ {[%clk 0:04:27.1]}
19... Qxf6 {[%clk 0:04:16.8]} 20. Rd5 {[%clk 0:04:26.4]} 20... Rab8 {[%clk
0:03:53.3]} 21. a3 {[%clk 0:04:23]} 21... g6 {[%clk 0:03:47.2]} 22. b4 {[%clk
0:04:21.5]} 22... axb4 {[%clk 0:03:45.2]} 23. axb4 {[%clk 0:04:21.4]} 23... Ne6
{[%clk 0:03:44.4]} 24. Nxe5 {[%clk 0:04:17.5]} 24... Nf4 {[%clk 0:03:40.7]} 25.
Qa2 {[%clk 0:03:48]} 25... Nxd5 {[%clk 0:03:23.9]} 26. Nd7 {[%clk 0:03:47]}
26... Qc3 {[%clk 0:03:06.5]} 27. Qxd5 {[%clk 0:03:37.3]} 27... Rbd8 {[%clk
0:02:54.5]} 28. g3 {[%clk 0:03:29]} 28... Rfe8 {[%clk 0:02:36.3]} 29. Qg5 {[%clk
0:03:17.6]} 29... Kg7 {[%clk 0:02:24.4]} 30. e5 {[%clk 0:03:11.5]} 30... Qf3
{[%clk 0:02:08.4]} 31. Rd2 {[%clk 0:02:59.1]} 31... Qf5 {[%clk 0:01:59.6]} 32.
Qxf5 {[%clk 0:02:45.8]} 32... gxf5 {[%clk 0:01:59.5]} 33. Rd5 {[%clk 0:02:45]}
33... Re7 {[%clk 0:01:55.7]} 34. Nxb6 {[%clk 0:02:39.7]} 34... Rxd5 {[%clk
0:01:54]} 35. Nxd5 {[%clk 0:02:39.6]} 35... Rxe5 {[%clk 0:01:53.4]} 36. Nc3
{[%clk 0:02:34.4]} 36... Re1+ {[%clk 0:01:42.9]} 37. Kg2 {[%clk 0:02:33.4]}
37... Rc1 {[%clk 0:01:42.5]} 38. Nd5 {[%clk 0:02:23.7]} 38... Rb1 {[%clk
0:01:34.8]} 39. Kf3 {[%clk 0:02:19.6]} 39... Rb2 {[%clk 0:01:26]} 40. h4 {[%clk
0:02:13.5]} 40... f6 {[%clk 0:01:22.3]} 41. Ke3 {[%clk 0:02:10.3]} 41... Kf7
{[%clk 0:01:20.8]} 42. f3 {[%clk 0:02:08]} 42... Ke6 {[%clk 0:01:19.6]} 43. Nc7+
{[%clk 0:02:05.5]} 43... Kd7 {[%clk 0:01:18.2]} 44. Na6 {[%clk 0:02:05]} 44...
Kc6 {[%clk 0:01:13.4]} 45. Kf4 {[%clk 0:02:03.3]} 45... Rb3 {[%clk 0:01:11.8]}
46. Kxf5 {[%clk 0:02:00]} 46... Rxf3+ {[%clk 0:01:09.2]} 47. Kg4 {[%clk
0:01:57.4]} 47... Ra3 {[%clk 0:01:05.6]} 48. Nc5 {[%clk 0:01:54.4]} 48... Kd6
{[%clk 0:00:52.8]} 49. Ne4+ {[%clk 0:01:45.2]} 49... Ke5 {[%clk 0:00:50.4]} 50.
Nc5 {[%clk 0:01:43.2]} 50... f5+ {[%clk 0:00:45]} 51. Kh5 {[%clk 0:01:40.9]}
51... Rxg3 {[%clk 0:00:42.5]} 52. b5 {[%clk 0:01:40.1]} 52... f4 {[%clk
0:00:33.5]} 53. b6 {[%clk 0:01:35.8]} 53... f3 {[%clk 0:00:31.1]} 54. b7 {[%clk
0:01:33.1]} 54... Rg8 {[%clk 0:00:29.2]} 55. Kh6 {[%clk 0:01:16.8]} 55... Kd4
{[%clk 0:00:20.8]} 56. Ne6+ {[%clk 0:01:03.7]} 56... Ke3 {[%clk 0:00:18.8]} 57.
Kxh7 {[%clk 0:01:01.4]} 57... Rb8 {[%clk 0:00:17.3]} 58. Nc5 {[%clk 0:00:53.4]}
58... f2 {[%clk 0:00:15.7]} 59. Kg6 {[%clk 0:00:46.3]} 59... f1=Q {[%clk
0:00:14.6]} 60. h5 {[%clk 0:00:46.2]} 60... Qg2+ {[%clk 0:00:10.2]} 61. Kf7
{[%clk 0:00:45.4]} 61... Rxb7+ {[%clk 0:00:09.4]} 62. Nxb7 {[%clk 0:00:43.6]}
62... Qxb7+ {[%clk 0:00:09.3]} 63. Kg6 {[%clk 0:00:43.4]} 63... Kf4 {[%clk
0:00:08.6]} 64. h6 {[%clk 0:00:42.8]} 64... Qc6+ {[%clk 0:00:07.9]} 65. Kg7
{[%clk 0:00:42.1]} 65... Qd7+ {[%clk 0:00:07.4]} 66. Kg6 {[%clk 0:00:41.4]}
66... Qe6+ {[%clk 0:00:07]} 67. Kg7 {[%clk 0:00:41]} 67... Kg5 {[%clk
0:00:06.4]} 68. h7 {[%clk 0:00:38.4]} 68... Qe7+ {[%clk 0:00:05.8]} 69. Kg8
{[%clk 0:00:36.3]} 69... Kg6 {[%clk 0:00:05.1]} 70. h8=N+ {[%clk 0:00:23.8]}
70... Kf6 {[%clk 0:00:04.2]} 71. Nf7 {[%clk 0:00:16.6]} 71... Qxf7+ {[%clk
0:00:03.5]} 72. Kh8 {[%clk 0:00:16.3]} 72... Qg7# {[%clk 0:00:03.2]} 0-1

[Event "Live Chess"]
[Site "Chess.com"]
[Date "2023.05.21"]
[Round "-"]
[White "HoarseyHorsey"]
[Black "ProfPoisson"]
[Result "1-0"]
[WhiteElo "1447"]
[BlackElo "1186"]
[TimeControl "300"]
[EndTime "0:31:40 PDT"]
[Termination "HoarseyHorsey won by checkmate"]

1. d4 {[%clk 0:04:59]} 1... e6 {[%clk 0:04:57.5]} 2. c4 {[%clk 0:04:58.3]} 2...
f5 {[%clk 0:04:56]} 3. Nc3 {[%clk 0:04:57.1]} 3... Nf6 {[%clk 0:04:55.4]} 4. Bg5
{[%clk 0:04:55.5]} 4... Bb4 {[%clk 0:04:54.8]} 5. e3 {[%clk 0:04:52.8]} 5...
Bxc3+ {[%clk 0:04:52.9]} 6. bxc3 {[%clk 0:04:51.8]} 6... O-O {[%clk 0:04:50.5]}
7. h4 {[%clk 0:04:50.3]} 7... d6 {[%clk 0:04:46.4]} 8. Bd3 {[%clk 0:04:47]} 8...
b6 {[%clk 0:04:43.7]} 9. f3 {[%clk 0:04:43.1]} 9... Qe8 {[%clk 0:04:35.7]} 10.
h5 {[%clk 0:04:24.4]} 10... Nxh5 {[%clk 0:04:32]} 11. Ne2 {[%clk 0:04:21.3]}
11... h6 {[%clk 0:04:25.4]} 12. Bh4 {[%clk 0:04:17.8]} 12... Qg6 {[%clk
0:04:16.2]} 13. Rg1 {[%clk 0:04:08.5]} 13... Nd7 {[%clk 0:04:09.2]} 14. Qc2
{[%clk 0:04:02.5]} 14... e5 {[%clk 0:04:02]} 15. e4 {[%clk 0:04:00.3]} 15...
fxe4 {[%clk 0:03:44.2]} 16. Bxe4 {[%clk 0:03:59.1]} 16... Qf7 {[%clk 0:03:33.2]}
17. Bg6 {[%clk 0:03:55.1]} 17... Qe6 {[%clk 0:03:24.5]} 18. Bxh5 {[%clk
0:03:48.2]} 18... Nf6 {[%clk 0:03:23.2]} 19. Bg6 {[%clk 0:03:41.1]} 19... exd4
{[%clk 0:03:20.5]} 20. cxd4 {[%clk 0:03:37.1]} 20... Bb7 {[%clk 0:03:03.5]} 21.
O-O-O {[%clk 0:03:30.1]} 21... Qe3+ {[%clk 0:02:55.5]} 22. Kb1 {[%clk
0:03:25.7]} 22... a5 {[%clk 0:02:38]} 23. Rge1 {[%clk 0:03:24.6]} 23... Qe7
{[%clk 0:02:20.6]} 24. Nc3 {[%clk 0:03:13.7]} 24... Qd7 {[%clk 0:02:18.5]} 25.
Bf5 {[%clk 0:03:06.2]} 25... Qd8 {[%clk 0:02:10.8]} 26. Ne4 {[%clk 0:03:01.1]}
26... Bxe4 {[%clk 0:02:07.5]} 27. Rxe4 {[%clk 0:02:53.7]} 27... g5 {[%clk
0:02:05.6]} 28. Bxg5 {[%clk 0:02:43.8]} 28... hxg5 {[%clk 0:02:02.5]} 29. Rh1
{[%clk 0:02:40.4]} 29... Nxe4 {[%clk 0:01:59.9]} 30. Qxe4 {[%clk 0:02:36.5]}
30... Qf6 {[%clk 0:01:51.1]} 31. Be6+ {[%clk 0:02:32.1]} 31... Kg7 {[%clk
0:01:37]} 32. Qh7# {[%clk 0:02:29.6]} 1-0

[Event "Live Chess"]
[Site "Chess.com"]
[Date "2023.05.21"]
[Round "-"]
[White "SupremeTactician"]
[Black "Tushinskiy"]
[Result "1/2-1/2"]
[WhiteElo "2307"]
[BlackElo "2184"]
[TimeControl "300"]
[EndTime "0:31:41 PDT"]
[Termination "Game drawn by repetition"]

1. e4 {[%clk 0:04:58.9]} 1... e5 {[%clk 0:04:58.2]} 2. Nf3 {[%clk 0:04:58.2]}
2... d6 {[%clk 0:04:57.4]} 3. Nc3 {[%clk 0:04:57.7]} 3... Bg4 {[%clk 0:04:56.6]}
4. d4 {[%clk 0:04:57.5]} 4... Nd7 {[%clk 0:04:54.3]} 5. Be2 {[%clk 0:04:55.3]}
5... Ngf6 {[%clk 0:04:49.7]} 6. O-O {[%clk 0:04:53.6]} 6... Be7 {[%clk
0:04:47.8]} 7. d5 {[%clk 0:04:52.6]} 7... O-O {[%clk 0:04:45.6]} 8. h3 {[%clk
0:04:52.3]} 8... Bh5 {[%clk 0:04:44]} 9. Be3 {[%clk 0:04:39.9]} 9... Bg6 {[%clk
0:04:35.1]} 10. Nd2 {[%clk 0:04:38.3]} 10... c6 {[%clk 0:04:31.5]} 11. dxc6
{[%clk 0:04:34.6]} 11... bxc6 {[%clk 0:04:31.4]} 12. a4 {[%clk 0:04:32.8]} 12...
Qc7 {[%clk 0:04:26.9]} 13. Bf3 {[%clk 0:04:32]} 13... Rfd8 {[%clk 0:04:11.1]}
14. Nc4 {[%clk 0:04:30]} 14... Nf8 {[%clk 0:04:09.2]} 15. Bg5 {[%clk 0:04:22.8]}
15... Ne6 {[%clk 0:04:06.8]} 16. Bxf6 {[%clk 0:04:21.4]} 16... Bxf6 {[%clk
0:04:06.7]} 17. Ne2 {[%clk 0:04:09.5]} 17... h6 {[%clk 0:04:03.6]} 18. Qd2
{[%clk 0:04:06.3]} 18... Rab8 {[%clk 0:03:59.3]} 19. Rfd1 {[%clk 0:04:04.3]}
19... Be7 {[%clk 0:03:56.8]} 20. Qa5 {[%clk 0:04:00]} 20... Qb7 {[%clk
0:03:48.4]} 21. Rab1 {[%clk 0:03:51.1]} 21... Nc5 {[%clk 0:03:47.1]} 22. Ng3
{[%clk 0:03:48.7]} 22... Ne6 {[%clk 0:03:36.1]} 23. Ne2 {[%clk 0:03:44.9]} 23...
Bf8 {[%clk 0:03:32.6]} 24. Bg4 {[%clk 0:03:34.3]} 24... Be7 {[%clk 0:03:29.5]}
25. Bf3 {[%clk 0:03:32.1]} 1/2-1/2

[Event "Live Chess"]
[Site "Chess.com"]
[Date "2023.05.21"]
[Round "-"]
[White "OSmith06"]
[Black "Leonid_Starozhilov"]
[Result "0-1"]
[WhiteElo "1659"]
[BlackElo "2646"]
[TimeControl "300"]
[EndTime "0:31:45 PDT"]
[Termination "Leonid_Starozhilov won by resignation"]

1. e4 {[%clk 0:04:58.5]} 1... c5 {[%clk 0:04:57.9]} 2. Nf3 {[%clk 0:04:56.7]}
2... e6 {[%clk 0:04:56.3]} 3. d4 {[%clk 0:04:52.5]} 3... cxd4 {[%clk 0:04:44.6]}
4. Nxd4 {[%clk 0:04:52.4]} 4... a6 {[%clk 0:04:41.9]} 5. Nc3 {[%clk 0:04:51.4]}
5... b5 {[%clk 0:04:40.7]} 6. Be3 {[%clk 0:04:48.9]} 6... Bb7 {[%clk 0:04:38.9]}
7. Qf3 {[%clk 0:04:40.8]} 7... Nf6 {[%clk 0:04:25.5]} 8. Bd3 {[%clk 0:04:36.4]}
8... Nc6 {[%clk 0:04:13.3]} 9. Nxc6 {[%clk 0:04:33.3]} 9... Bxc6 {[%clk
0:04:11.9]} 10. O-O {[%clk 0:04:29.7]} 10... Qc7 {[%clk 0:04:10.2]} 11. Rad1
{[%clk 0:04:13.7]} 11... Be7 {[%clk 0:04:07.1]} 12. Rfe1 {[%clk 0:04:09.8]}
12... O-O {[%clk 0:04:03.1]} 13. Bf4 {[%clk 0:03:57]} 13... d6 {[%clk
0:03:58.9]} 14. Qe2 {[%clk 0:03:45.4]} 14... Rac8 {[%clk 0:03:53.8]} 15. e5
{[%clk 0:03:42.7]} 15... dxe5 {[%clk 0:03:49.1]} 16. Bxe5 {[%clk 0:03:42]} 16...
Qb7 {[%clk 0:03:48.4]} 17. Bxf6 {[%clk 0:03:26.7]} 17... Bxf6 {[%clk 0:03:46.7]}
18. Be4 {[%clk 0:03:25.8]} 18... Bxc3 {[%clk 0:03:44.3]} 19. bxc3 {[%clk
0:03:20.4]} 19... Bxe4 {[%clk 0:03:41.8]} 20. Qxe4 {[%clk 0:03:19.6]} 20... Qxe4
{[%clk 0:03:40.5]} 21. Rxe4 {[%clk 0:03:19.5]} 21... Rxc3 {[%clk 0:03:39.9]} 22.
Re2 {[%clk 0:03:07.2]} 22... Rfc8 {[%clk 0:03:37.1]} 23. h3 {[%clk 0:03:03]}
23... g5 {[%clk 0:03:35.4]} 24. Rd6 {[%clk 0:02:54.2]} 24... Ra3 {[%clk
0:03:34.1]} 25. Re5 {[%clk 0:02:43.3]} 25... h6 {[%clk 0:03:31.2]} 26. Rd2
{[%clk 0:02:35.6]} 26... Rxa2 {[%clk 0:03:29.9]} 27. Ree2 {[%clk 0:02:32.8]}
27... b4 {[%clk 0:03:29]} 28. g4 {[%clk 0:02:29.3]} 28... a5 {[%clk 0:03:28.2]}
29. Kg2 {[%clk 0:02:25]} 29... a4 {[%clk 0:03:27.4]} 0-1

[Event "Live Chess"]
[Site "Chess.com"]
[Date "2023.05.21"]
[Round "-"]
[White "Biranidun"]
[Black "LiamClery2020"]
[Result "1-0"]
[WhiteElo "2539"]
[BlackElo "2030"]
[TimeControl "300"]
[EndTime "0:31:59 PDT"]
[Termination "Biranidun won by resignation"]

1. e4 {[%clk 0:04:59.3]} 1... Nf6 {[%clk 0:04:59.1]} 2. e5 {[%clk 0:04:58.5]}
2... Nd5 {[%clk 0:04:57.7]} 3. d4 {[%clk 0:04:58.2]} 3... d6 {[%clk 0:04:56.9]}
4. Nf3 {[%clk 0:04:57.6]} 4... dxe5 {[%clk 0:04:55.7]} 5. Nxe5 {[%clk
0:04:57.5]} 5... c6 {[%clk 0:04:55.1]} 6. Be2 {[%clk 0:04:56.6]} 6... Bf5 {[%clk
0:04:53.3]} 7. O-O {[%clk 0:04:55.9]} 7... Nd7 {[%clk 0:04:52.4]} 8. Nf3 {[%clk
0:04:55.6]} 8... N7f6 {[%clk 0:04:51.7]} 9. c4 {[%clk 0:04:54.4]} 9... Nb4
{[%clk 0:04:51]} 10. Nh4 {[%clk 0:04:38.2]} 10... Bg6 {[%clk 0:04:42.3]} 11. a3
{[%clk 0:04:22.7]} 11... Na6 {[%clk 0:04:41.4]} 12. Nc3 {[%clk 0:04:16.6]} 12...
e6 {[%clk 0:04:39.2]} 13. Be3 {[%clk 0:04:15.6]} 13... Ne4 {[%clk 0:04:27.6]}
14. Nxg6 {[%clk 0:04:11.5]} 14... Nxc3 {[%clk 0:04:26.3]} 15. bxc3 {[%clk
0:04:10.5]} 15... hxg6 {[%clk 0:04:25.8]} 16. Rb1 {[%clk 0:04:07]} 16... Bd6
{[%clk 0:04:24.6]} 17. g3 {[%clk 0:04:04.2]} 17... Qd7 {[%clk 0:04:20.5]} 18. c5
{[%clk 0:04:03]} 18... Bc7 {[%clk 0:04:17.6]} 19. Rxb7 {[%clk 0:04:01.2]} 19...
O-O-O {[%clk 0:04:16.1]} 20. Bxa6 {[%clk 0:03:59.6]} 1-0

[Event "Live Chess"]
[Site "Chess.com"]
[Date "2023.05.21"]
[Round "-"]
[White "Long1968"]
[Black "Denz14"]
[Result "1-0"]
[WhiteElo "1011"]
[BlackElo "1022"]
[TimeControl "300"]
[EndTime "0:32:21 PDT"]
[Termination "Long1968 won by checkmate"]

1. e4 {[%clk 0:04:53.3]} 1... d5 {[%clk 0:04:57.6]} 2. exd5 {[%clk 0:04:50.7]}
2... Qxd5 {[%clk 0:04:57.5]} 3. Nc3 {[%clk 0:04:47.9]} 3... Qd8 {[%clk
0:04:56.2]} 4. d4 {[%clk 0:04:45.4]} 4... Nf6 {[%clk 0:04:53.9]} 5. Nf3 {[%clk
0:04:42.5]} 5... Bg4 {[%clk 0:04:52.4]} 6. Be2 {[%clk 0:04:40.1]} 6... Bxf3
{[%clk 0:04:50.6]} 7. Bxf3 {[%clk 0:04:37.9]} 7... c6 {[%clk 0:04:50.5]} 8. O-O
{[%clk 0:04:32.9]} 8... e6 {[%clk 0:04:46.9]} 9. Bg5 {[%clk 0:04:29]} 9... Be7
{[%clk 0:04:45.1]} 10. Qd2 {[%clk 0:04:26.4]} 10... Nbd7 {[%clk 0:04:38.2]} 11.
Rad1 {[%clk 0:04:19.8]} 11... Nd5 {[%clk 0:04:36.3]} 12. h4 {[%clk 0:04:04.6]}
12... Nxc3 {[%clk 0:04:29.8]} 13. bxc3 {[%clk 0:03:58.8]} 13... Bxg5 {[%clk
0:04:25.8]} 14. hxg5 {[%clk 0:03:55.3]} 14... Nb6 {[%clk 0:04:14.1]} 15. Qe3
{[%clk 0:03:35.9]} 15... Nd5 {[%clk 0:04:10.2]} 16. Qe5 {[%clk 0:03:23.2]} 16...
O-O {[%clk 0:03:58.5]} 17. c4 {[%clk 0:02:47.2]} 17... Ne7 {[%clk 0:03:49.8]}
18. d5 {[%clk 0:02:29.3]} 18... cxd5 {[%clk 0:03:44]} 19. cxd5 {[%clk
0:02:25.7]} 19... exd5 {[%clk 0:03:38.9]} 20. Bxd5 {[%clk 0:02:22.2]} 20... Nxd5
{[%clk 0:03:33.4]} 21. Rxd5 {[%clk 0:02:18.7]} 21... Qb8 {[%clk 0:03:26]} 22.
Qf5 {[%clk 0:01:52.5]} 22... Qc7 {[%clk 0:03:19.4]} 23. Rfd1 {[%clk 0:01:45.8]}
23... Rad8 {[%clk 0:03:13.5]} 24. c4 {[%clk 0:01:13.8]} 24... Rfe8 {[%clk
0:02:56.4]} 25. Qd3 {[%clk 0:00:45.1]} 25... Rxd5 {[%clk 0:02:48.4]} 26. Qxd5
{[%clk 0:00:40.6]} 26... b6 {[%clk 0:02:36.6]} 27. Qd7 {[%clk 0:00:25.2]} 27...
Rc8 {[%clk 0:02:28]} 28. Qxc7 {[%clk 0:00:17.9]} 28... Rxc7 {[%clk 0:02:26.9]}
29. Rd8# {[%clk 0:00:16.4]} 1-0

[Event "Live Chess"]
[Site "Chess.com"]
[Date "2023.05.21"]
[Round "-"]
[White "mattihelenius2"]
[Black "Bot_Boy"]
[Result "1-0"]
[WhiteElo "493"]
[BlackElo "334"]
[TimeControl "300"]
[EndTime "0:32:45 PDT"]
[Termination "mattihelenius2 won on time"]

1. d4 {[%clk 0:04:58.7]} 1... d5 {[%clk 0:04:57.8]} 2. c4 {[%clk 0:04:54.7]}
2... Nf6 {[%clk 0:04:51]} 3. e3 {[%clk 0:04:47.4]} 3... e6 {[%clk 0:04:45]} 4.
Nc3 {[%clk 0:04:36]} 4... Bb4 {[%clk 0:04:31.5]} 5. Qb3 {[%clk 0:04:26.2]} 5...
a5 {[%clk 0:04:11.4]} 6. cxd5 {[%clk 0:04:20.6]} 6... Bxc3+ {[%clk 0:04:04.9]}
7. Qxc3 {[%clk 0:04:19.1]} 7... Nxd5 {[%clk 0:04:00.3]} 8. Qc4 {[%clk
0:04:10.1]} 8... Nb6 {[%clk 0:03:48.5]} 9. Qe2 {[%clk 0:04:06.1]} 9... Nc6
{[%clk 0:03:42.6]} 10. Nf3 {[%clk 0:04:03.8]} 10... f6 {[%clk 0:03:38.2]} 11.
Bd2 {[%clk 0:03:57.3]} 11... Nb4 {[%clk 0:03:22.3]} 12. Qd1 {[%clk 0:03:34.9]}
12... Qd6 {[%clk 0:02:55.3]} 13. Bb5+ {[%clk 0:03:23]} 13... Bd7 {[%clk
0:02:49]} 14. Bxd7+ {[%clk 0:03:10.3]} 14... Kxd7 {[%clk 0:02:41.1]} 15. a3
{[%clk 0:03:10.2]} 15... Nd3+ {[%clk 0:02:26.3]} 16. Ke2 {[%clk 0:03:01.3]}
16... Nxb2 {[%clk 0:02:19.2]} 17. Qc1 {[%clk 0:02:52.9]} 17... N2c4 {[%clk
0:02:04.6]} 18. Re1 {[%clk 0:02:35.6]} 18... Nxd2 {[%clk 0:01:51.2]} 19. Nxd2
{[%clk 0:02:31.3]} 19... Rhc8 {[%clk 0:01:35.6]} 20. Ne4 {[%clk 0:02:30.2]}
20... Qc6 {[%clk 0:01:22.7]} 21. Nc5+ {[%clk 0:02:27.1]} 21... Ke7 {[%clk
0:01:08.5]} 22. Rb1 {[%clk 0:01:26.1]} 22... Qd5 {[%clk 0:00:25.8]} 23. Nxb7
{[%clk 0:01:17.8]} 23... Qxb7 {[%clk 0:00:23.8]} 24. Rb5 {[%clk 0:01:02.4]}
24... Qa6 {[%clk 0:00:17.9]} 25. Qc5+ {[%clk 0:00:56.5]} 25... Kf7 {[%clk
0:00:11.1]} 26. Kf3 {[%clk 0:00:39.3]} 1-0

[Event "Live Chess"]
[Site "Chess.com"]
[Date "2023.05.21"]
[Round "-"]
[White "Hacker_2009"]
[Black "Shepherds_Pie"]
[Result "0-1"]
[WhiteElo "1933"]
[BlackElo "1928"]
[TimeControl "300"]
[EndTime "0:32:50 PDT"]
[Termination "Shepherds_Pie won by checkmate"]

1. d4 {[%clk 0:04:58.7]} 1... Nf6 {[%clk 0:04:56.9]} 2. Nf3 {[%clk 0:04:58.2]}
2... c5 {[%clk 0:04:55.7]} 3. e3 {[%clk 0:04:56.7]} 3... g6 {[%clk 0:04:54.3]}
4. c4 {[%clk 0:04:55.3]} 4... Bg7 {[%clk 0:04:52.9]} 5. Nc3 {[%clk 0:04:53.8]}
5... O-O {[%clk 0:04:51.4]} 6. Be2 {[%clk 0:04:52.4]} 6... d6 {[%clk 0:04:50.1]}
7. O-O {[%clk 0:04:50.7]} 7... b6 {[%clk 0:04:47]} 8. b3 {[%clk 0:04:49.1]} 8...
Bb7 {[%clk 0:04:45.7]} 9. Bb2 {[%clk 0:04:48.4]} 9... cxd4 {[%clk 0:04:44.5]}
10. Nxd4 {[%clk 0:04:46.9]} 10... Nbd7 {[%clk 0:04:43.1]} 11. Bf3 {[%clk
0:04:43.6]} 11... Bxf3 {[%clk 0:04:41.1]} 12. Qxf3 {[%clk 0:04:42.7]} 12... a6
{[%clk 0:04:39.9]} 13. Rfd1 {[%clk 0:04:38.9]} 13... Re8 {[%clk 0:04:38.5]} 14.
Rac1 {[%clk 0:04:35.5]} 14... Ne5 {[%clk 0:04:36.2]} 15. Qe2 {[%clk 0:04:31.9]}
15... Qc7 {[%clk 0:04:34.4]} 16. Nf3 {[%clk 0:04:29.8]} 16... Nfd7 {[%clk
0:04:30.7]} 17. Nd5 {[%clk 0:04:25.6]} 17... Qb7 {[%clk 0:04:29.3]} 18. Nd4
{[%clk 0:04:18]} 18... Rac8 {[%clk 0:04:18.9]} 19. h3 {[%clk 0:04:09.6]} 19...
b5 {[%clk 0:04:09.7]} 20. f4 {[%clk 0:03:52.2]} 20... Nc6 {[%clk 0:03:54.7]} 21.
cxb5 {[%clk 0:03:47.6]} 21... axb5 {[%clk 0:03:51.1]} 22. Nxc6 {[%clk
0:03:46.2]} 22... Rxc6 {[%clk 0:03:46.7]} 23. Bxg7 {[%clk 0:03:45.3]} 23... Kxg7
{[%clk 0:03:44.9]} 24. Qb2+ {[%clk 0:03:43.6]} 24... Kg8 {[%clk 0:03:42.4]} 25.
Qd4 {[%clk 0:03:34.9]} 25... Nc5 {[%clk 0:03:35.3]} 26. b4 {[%clk 0:03:24.2]}
26... Ne6 {[%clk 0:03:32.5]} 27. Qd2 {[%clk 0:03:17.4]} 27... Rxc1 {[%clk
0:03:28.2]} 28. Rxc1 {[%clk 0:03:15.8]} 28... Qa7 {[%clk 0:03:24.6]} 29. Qc2
{[%clk 0:02:59.4]} 29... f6 {[%clk 0:03:18]} 30. Qb3 {[%clk 0:02:56.8]} 30...
Kg7 {[%clk 0:03:06.8]} 31. Kf2 {[%clk 0:02:42.8]} 31... Ra8 {[%clk 0:02:55.8]}
32. Nc3 {[%clk 0:02:39.7]} 32... Nxf4 {[%clk 0:02:45.7]} 33. Kf3 {[%clk
0:02:29.9]} 33... Nh5 {[%clk 0:02:33.1]} 34. Qe6 {[%clk 0:02:10.6]} 34... Qb7+
{[%clk 0:02:24.1]} 35. Kf2 {[%clk 0:02:04.9]} 35... Kf8 {[%clk 0:02:06.5]} 36.
Nd5 {[%clk 0:01:41.6]} 36... Ng7 {[%clk 0:02:01.3]} 37. Qe4 {[%clk 0:01:39.9]}
37... f5 {[%clk 0:01:49.3]} 38. Qd4 {[%clk 0:01:37]} 38... e5 {[%clk 0:01:39.4]}
39. Qd2 {[%clk 0:01:31.2]} 39... Ne6 {[%clk 0:01:33.6]} 40. Rc2 {[%clk
0:01:08.3]} 40... Ng5 {[%clk 0:01:30]} 41. Qd3 {[%clk 0:00:57.9]} 41... Ne4+
{[%clk 0:01:17.9]} 42. Kg1 {[%clk 0:00:56.8]} 42... Rc8 {[%clk 0:01:12]} 43.
Rxc8+ {[%clk 0:00:55.4]} 43... Qxc8 {[%clk 0:01:10.9]} 44. Qxb5 {[%clk
0:00:54.8]} 44... Qc1+ {[%clk 0:01:06.9]} 45. Kh2 {[%clk 0:00:53.4]} 45... Qe1
{[%clk 0:00:55.7]} 46. Qb8+ {[%clk 0:00:51.8]} 46... Kg7 {[%clk 0:00:50.4]} 47.
Qc7+ {[%clk 0:00:49.2]} 47... Kh6 {[%clk 0:00:49.2]} 48. Qc4 {[%clk 0:00:41]}
48... Qg3+ {[%clk 0:00:46.8]} 49. Kg1 {[%clk 0:00:39.9]} 49... Nd2 {[%clk
0:00:38.3]} 50. Qe2 {[%clk 0:00:36]} 50... Ne4 {[%clk 0:00:28.4]} 51. a4 {[%clk
0:00:34.3]} 51... Ng5 {[%clk 0:00:22.5]} 52. Kh1 {[%clk 0:00:31.1]} 52... Kg7
{[%clk 0:00:17.6]} 53. a5 {[%clk 0:00:29.8]} 53... Ne4 {[%clk 0:00:13.1]} 54. a6
{[%clk 0:00:21.9]} 54... Nf2+ {[%clk 0:00:10.8]} 55. Kg1 {[%clk 0:00:21.5]}
55... Nxh3+ {[%clk 0:00:09.6]} 56. Kf1 {[%clk 0:00:21.2]} 56... Ng5 {[%clk
0:00:07.7]} 57. a7 {[%clk 0:00:18.9]} 57... Qh2 {[%clk 0:00:06.6]} 58. a8=Q
{[%clk 0:00:16.4]} 58... Qh1+ {[%clk 0:00:05.4]} 59. Kf2 {[%clk 0:00:15.7]}
59... Ne4+ {[%clk 0:00:05.3]} 60. Kf3 {[%clk 0:00:15.2]} 60... Qh5+ {[%clk
0:00:04.2]} 61. g4 {[%clk 0:00:13.7]} 61... Qxg4# {[%clk 0:00:02.6]} 0-1